fUST/lending_fUST_20251106
["ID","MTS","AMOUNT","RATE_DAILY","PERIOD"]
[393262808,1762398634140,-387.40667,0.00021318,2]
[393262809,1762398634150,-387.40667,0.00021318,2]
[393262810,1762398634159,-1012.03397513,0.0002144,3]
[393262811,1762398634169,-501.04518083,0.00021488,2]
[393262812,1762398634178,-343.897512,0.0002157,7]
[393262813,1762398634187,-343.897512,0.0002157,7]
[393262814,1762398634197,-343.897512,0.0002157,7]
[393262815,1762398634210,-343.897512,0.0002157,7]
[393262816,1762398634220,-1500.0,0.00021574,2]
[393262817,1762398634230,-1520.22272288,0.00021574,2]
[393262818,1762398634241,-284.03558524,0.000216,2]
[393262819,1762398634251,-577.481131,0.00021619,7]
[393262820,1762398634259,-577.481131,0.00021619,7]
[393262821,1762398634268,-577.481131,0.00021619,7]
[393262822,1762398634278,-577.481124,0.00021619,7]
[393262823,1762398634288,-808.97872217,0.00021723,2]
[393262824,1762398634297,-1012.65368243,0.00021723,2]
[393262825,1762398634306,-1500.0,0.00021764,2]
[393262826,1762398634316,-1500.0,0.00021764,2]
[393262827,1762398634325,-1500.0,0.00021764,2]
[393262828,1762398634334,-420.0,0.00021772,2]
[393262829,1762398634344,-1680.0,0.00021774,2]
[393262830,1762398634353,-1500.0,0.000218,2]
[393262831,1762398634366,-1871.12,0.00021864,2]
[393262832,1762398634380,-1500.0,0.00021866,2]
[393262833,1762398634390,-1680.0,0.00021877,2]
[393262834,1762398634399,-387.40667,0.00021917,2]
[393262835,1762398634408,-387.40667,0.00021917,2]
[393262836,1762398634418,-387.40667,0.00021917,2]
[393262837,1762398634427,-387.406669,0.00021917,2]
[393262838,1762398634437,-500.0,0.00021917,2]
[393262839,1762398634448,-500.0,0.00021917,2]
[393262840,1762398634458,-500.0,0.00021917,2]
[393262841,1762398634467,-199.38748707,0.00021917,2]
[393262842,1762398634476,-343.897512,0.00022118,7]
[393262843,1762398634485,-343.897512,0.00022118,7]
[393262844,1762398634495,-343.897512,0.00022118,7]
[393262845,1762398634504,-343.897512,0.00022118,7]
[393262846,1762398634514,-1036.4033422,0.00022122,2]
[393262847,1762398634523,-391.64081194,0.0002215,3]
[393262848,1762398634532,-1076.78034144,0.00022312,2]
[393262849,1762398634542,-2000.0,0.00022312,2]
[393262850,1762398634551,-2000.0,0.00022312,2]
[393262851,1762398634561,-2000.0,0.00022348,2]
[393262852,1762398634570,-2000.0,0.00022414,2]
[393262853,1762398634580,-414.46,0.000225,7]
[393262854,1762398634590,-2105.02,0.00022645,2]
[393262855,1762398634599,-343.897512,0.00022665,7]
[393262856,1762398634609,-343.897512,0.00022665,7]
[393262857,1762398634618,-343.897512,0.00022665,7]
[393262858,1762398634627,-343.897519,0.00022665,7]
[393262859,1762398634636,-204.0,0.00022816,2]
[393262860,1762398634645,-2500.0,0.0002286,2]
[393262861,1762398634654,-2500.0,0.0002286,2]
[393262862,1762398634663,-1896.58640358,0.00022895,2]
[393262863,1762398634673,-160.0,0.00022917,2]
[393262864,1762398634682,-2500.0,0.00022962,2]
[393262865,1762398634692,-13543.14,0.00023,7]
[393262866,1762398634702,-720.0,0.00023051,20]
[393262867,1762398634711,-151.0,0.00023288,7]
[393262868,1762398634721,-151.0,0.00023288,7]
[393262869,1762398634731,-151.0,0.00023288,7]
[393262870,1762398634740,-151.0,0.00023288,7]
[393262871,1762398634750,-151.0,0.00023288,7]
[393262872,1762398634759,-151.0,0.00023288,7]
[393262873,1762398634769,-151.0,0.00023288,7]
[393262874,1762398634779,-151.0,0.00023288,7]
[393262875,1762398634788,-151.0,0.00023288,7]
[393262876,1762398634798,-151.0,0.00023288,7]
[393262877,1762398634808,-151.0,0.00023288,7]
[393262878,1762398634817,-151.0,0.00023288,7]
[393262879,1762398634827,-151.0,0.00023288,7]
[393262880,1762398634836,-151.0,0.00023288,7]
[393262881,1762398634939,-151.0,0.00023288,7]
[393262882,1762398634961,-151.0,0.00023288,7]
[393262883,1762398634971,-151.0,0.00023288,7]
[393262884,1762398634980,-151.0,0.00023288,7]
[393262885,1762398634989,-151.0,0.00023288,7]
[393262886,1762398634998,-151.0,0.00023288,7]
[393262887,1762398635007,-151.0,0.00023288,7]
[393262888,1762398635016,-188.633493,0.00023288,7]
[393262889,1762398635026,-3000.0,0.00023408,2]
[393262890,1762398635036,-3000.0,0.00023408,2]
[393262891,1762398635045,-2338.91,0.00023426,2]
[393262892,1762398635054,-260.0,0.00023465,2]
[393262893,1762398635063,-2017.12692754,0.0002351,2]
[393262894,1762398635072,-201.48184452,0.00023617,2]
[393262895,1762398635081,-587.0,0.00023708,2]
[393262896,1762398635091,-2351.0,0.00023709,2]
[393262897,1762398635101,-6952.81637677,0.000239,2]
[393262898,1762398635110,-2351.0,0.00023936,2]
[393262899,1762398635119,-3500.0,0.00023956,2]
[393262900,1762398635128,-3500.0,0.00023956,2]
[393262901,1762398635137,-500.0,0.00023973,2]
[393262902,1762398635147,-500.0,0.00023973,2]
[393262903,1762398635156,-500.0,0.00023973,2]
[393262904,1762398635166,-500.0,0.00023973,2]
[393262905,1762398635176,-288.23629196,0.00023973,2]
[393262906,1762398635186,-501.59901587,0.00023973,2]
[393262907,1762398635199,-159.13939442,0.00023973,2]
[393262908,1762398635211,-500.0,0.00023973,2]
[393262909,1762398635220,-500.0,0.00023973,2]
[393262910,1762398635230,-500.0,0.00023973,2]
[393262911,1762398635241,-634.23109354,0.00023973,2]
[393262912,1762398635260,-177.68743044,0.00023973,2]
[393262913,1762398635271,-502.73186167,0.00023973,2]
[393262914,1762398635280,-500.0,0.00023973,2]
[393262915,1762398635290,-500.0,0.00023973,2]
[393262916,1762398635301,-500.0,0.00023973,2]
[393262917,1762398635310,-500.0,0.00023973,2]
[393262918,1762398635320,-500.0,0.00023973,2]
[393262919,1762398635329,-500.0,0.00023973,2]
[393262920,1762398635339,-500.0,0.00023973,2]
[393262921,1762398635349,-500.0,0.00023973,2]
[393262922,1762398635359,-343.95379844,0.00023973,2]
[393262923,1762398635368,-500.0,0.00023973,2]
[393262924,1762398635378,-500.0,0.00023973,2]
[393262925,1762398635388,-500.0,0.00023973,2]
[393262926,1762398635397,-500.0,0.00023973,2]
[393262927,1762398635407,-500.0,0.00023973,2]
[393262928,1762398635416,-500.0,0.00023973,2]
[393262929,1762398635426,-500.0,0.00023973,2]
[393262930,1762398635435,-500.0,0.00023973,2]
[393262931,1762398635445,-500.0,0.00023973,2]
[393262932,1762398635454,-500.0,0.00023973,2]
[393262933,1762398635464,-500.0,0.00023973,2]
[393262934,1762398635474,-218.20320298,0.00023973,2]
[393262935,1762398635483,-500.0,0.00023973,2]
[393262936,1762398635493,-501.19667367,0.00023973,2]
[393262937,1762398635503,-500.0,0.00023973,2]
[393262938,1762398635512,-500.0,0.00023973,2]
[393262939,1762398635521,-500.0,0.00023973,2]
[393262940,1762398635531,-500.0,0.00023973,2]
[393262941,1762398635541,-500.0,0.00023973,2]
[393262942,1762398635550,-500.0,0.00023973,2]
[393262943,1762398635559,-500.0,0.00023973,2]
[393262944,1762398635569,-500.0,0.00023973,2]
[393262945,1762398635578,-500.0,0.00023973,2]
[393262946,1762398635588,-168.82940135,0.00023988,2]
[393262947,1762398635597,-100000.0,0.0002399,2]
[393262948,1762398635607,-248.93,0.00024,14]
[393262949,1762398635617,-360.0,0.00024013,2]
[393262950,1762398635626,-250.0,0.000243,2]
[393262951,1762398635637,-1000.0,0.00024307,2]
[393262952,1762398635648,-1000.0,0.00024307,2]
[393262953,1762398635658,-1000.0,0.00024307,2]
[393262954,1762398635667,-1000.0,0.00024307,2]
[393262955,1762398635676,-1113.63072477,0.00024307,2]
[393262956,1762398635686,-153.40263506,0.00024359,2]
[393262957,1762398635696,-578.3936897,0.00024373,2]
[393262958,1762398635705,-500.0,0.00024373,2]
[393262959,1762398635715,-414.46,0.000244,7]
[393262960,1762398635724,-1671.30114655,0.00024503,2]
[393262961,1762398635734,-4000.0,0.00024503,2]
[393262962,1762398635743,-566.71842881,0.00024521,2]
[393262963,1762398635752,-1118.51006727,0.00024521,2]
[393262964,1762398635762,-269.89847771,0.00024521,2]
[393262965,1762398635774,-1000.0,0.00024521,2]
[393262966,1762398635784,-1000.0,0.00024521,2]
[393262967,1762398635794,-1000.0,0.00024521,2]
[393262968,1762398635804,-1000.0,0.00024521,2]
[393262969,1762398635815,-1000.0,0.00024521,2]
[393262970,1762398635824,-1000.0,0.00024521,2]
[393262971,1762398635834,-1000.0,0.00024521,2]
[393262972,1762398635843,-1000.0,0.00024521,2]
[393262973,1762398635854,-1000.0,0.00024521,2]
[393262974,1762398635863,-689.95280662,0.00024521,2]
[393262975,1762398635872,-1000.0,0.00024521,2]
[393262976,1762398635883,-1000.0,0.00024521,2]
[393262977,1762398635892,-1000.0,0.00024521,2]
[393262978,1762398635902,-1000.0,0.00024521,2]
[393262979,1762398635912,-1000.0,0.00024521,2]
[393262980,1762398635921,-1000.0,0.00024521,2]
[393262981,1762398635930,-728.37761028,0.00024521,2]
[393262982,1762398635940,-1000.0,0.00024521,2]
[393262983,1762398635950,-503.23219701,0.00024521,2]
[393262984,1762398635960,-1000.0,0.00024521,2]
[393262985,1762398635969,-1000.0,0.00024521,2]
[393262986,1762398635978,-1000.0,0.00024521,2]
[393262987,1762398635988,-1000.0,0.00024521,2]
[393262988,1762398635997,-1000.0,0.00024521,2]
[393262989,1762398636008,-1000.0,0.00024521,2]
[393262990,1762398636017,-1008.44877261,0.00024521,2]
[393262991,1762398636028,-1000.0,0.00024521,2]
[393262992,1762398636038,-1000.0,0.00024521,2]
[393262993,1762398636048,-484.62087522,0.00024521,2]
[393262994,1762398636058,-1000.0,0.00024521,2]
[393262995,1762398636067,-503.18609466,0.00024521,2]
[393262996,1762398636077,-443.91588968,0.00024521,2]
[393262997,1762398636086,-1000.0,0.00024521,2]
[393262998,1762398636095,-460.0,0.00024561,2]
[393262999,1762398636104,-380.0,0.00024658,2]
[393263000,1762398636114,-283.53221752,0.00024658,2]
[393263001,1762398636123,-13543.14,0.000247,7]
[393263002,1762398636138,-399.6403651,0.000247,7]
[393263003,1762398636147,-628.0,0.00024751,2]
[393263004,1762398636156,-986.0,0.00024751,2]
[393263005,1762398636166,-2165.0,0.00024751,2]
[393263006,1762398636176,-17096.093267,0.000248,2]
[393263007,1762398636185,-231.0,0.00024816,2]
[393263008,1762398636197,-369.2323344,0.00024873,2]
[393263009,1762398636209,-500.0,0.00024873,2]
[393263010,1762398636219,-500.0,0.00024873,2]
[393263011,1762398636228,-508.23902275,0.00024873,2]
[393263012,1762398636237,-500.0,0.00024873,2]
[393263013,1762398636247,-500.0,0.00024873,2]
[393263014,1762398636256,-500.0,0.00024873,2]
[393263015,1762398636266,-150.0,0.00024873,2]
[393263016,1762398636280,-162.37448512,0.00024873,2]
[393263017,1762398636291,-240.983693,0.000249,2]
[393263018,1762398636300,-343150.554998,0.000249,2]
[393263019,1762398636309,-481.15464641,0.00024921,2]
[393263020,1762398636319,-2849.34887783,0.00024963,2]
[393263021,1762398636328,-158.61431856,0.00024973,2]
[393263022,1762398636337,-500.0,0.00024973,2]
[393263023,1762398636347,-500.0,0.00024973,2]
[393263024,1762398636356,-500.0,0.00024973,2]
[393263025,1762398636365,-500.0,0.00024973,2]
[393263026,1762398636375,-500.0,0.00024973,2]
[393263027,1762398636384,-500.0,0.00024973,2]
[393263028,1762398636393,-500.0,0.00024973,2]
[393263029,1762398636402,-500.0,0.00024973,2]
[393263030,1762398636412,-500.0,0.00024973,2]
[393263031,1762398636421,-501.96277447,0.00024973,2]
[393263032,1762398636431,-500.0,0.00024973,2]
[393263033,1762398636441,-501.43205176,0.00024973,2]
[393263034,1762398636450,-500.0,0.00024973,2]
[393263035,1762398636460,-500.0,0.00024973,2]
[393263036,1762398636469,-500.0,0.00024973,2]
[393263037,1762398636479,-500.0,0.00024973,2]
[393263038,1762398636488,-485.40091473,0.00024999,2]
[393263039,1762398636497,-412.0,0.00025027,2]
[393263040,1762398636506,-3500.7444821,0.00025051,2]
[393263041,1762398636516,-199.4348375,0.00025062,3]
[393263042,1762398636525,-240.20806265,0.00025062,3]
[393263043,1762398636535,-1500.0,0.00025068,2]
[393263044,1762398636545,-1500.0,0.00025068,2]
[393263045,1762398636554,-1005.04865201,0.00025068,2]
[393263046,1762398636564,-660.62214276,0.00025068,2]
[393263047,1762398636574,-1500.0,0.00025068,2]
[393263048,1762398636583,-1500.0,0.00025068,2]
[393263049,1762398636593,-812.45845499,0.00025068,2]
[393263050,1762398636602,-1500.0,0.00025068,2]
[393263051,1762398636611,-1500.0,0.00025068,2]
[393263052,1762398636621,-1500.0,0.00025068,2]
[393263053,1762398636630,-1500.0,0.00025068,2]
[393263054,1762398636639,-837.81147987,0.00025068,2]
[393263055,1762398636649,-1500.0,0.00025068,2]
[393263056,1762398636658,-1500.0,0.00025068,2]
[393263057,1762398636667,-1500.0,0.00025068,2]
[393263058,1762398636677,-1500.0,0.00025068,2]
[393263059,1762398636687,-1500.0,0.00025068,2]
[393263060,1762398636697,-1500.0,0.00025068,2]
[393263061,1762398636706,-1500.0,0.00025068,2]
[393263062,1762398636716,-1500.0,0.00025068,2]
[393263063,1762398636725,-1500.0,0.00025068,2]
[393263064,1762398636735,-1500.0,0.00025068,2]
[393263065,1762398636745,-1500.0,0.00025068,2]
[393263066,1762398636755,-1500.0,0.00025068,2]
[393263067,1762398636764,-1500.0,0.00025068,2]
[393263068,1762398636773,-1500.0,0.00025068,2]
[393263069,1762398636782,-560.0,0.00025108,2]
[393263070,1762398636792,-240.983693,0.000252,2]
[393263071,1762398636802,-882.2196563,0.00025205,2]
[393263072,1762398636811,-399.6403651,0.00025299,2]
[393263073,1762398636821,-864.0,0.00025357,20]
[393263074,1762398636830,-306.59699125,0.00025421,2]
[393263075,1762398636839,-356.21277718,0.00025421,2]
[393263076,1762398636848,-1000.0,0.00025421,2]
[393263077,1762398636858,-1000.0,0.00025421,2]
[393263078,1762398636868,-250.0,0.00025421,2]
[393263079,1762398636877,-666.07241701,0.00025421,2]
[393263080,1762398636887,-240.983693,0.000255,2]
[393263081,1762398636896,-248.93,0.000255,14]
[393263082,1762398636906,-2849.34887783,0.00025511,2]
[393263083,1762398636915,-1000.0,0.00025521,2]
[393263084,1762398636924,-1000.0,0.00025521,2]
[393263085,1762398636933,-279.40222144,0.00025521,2]
[393263086,1762398636943,-1000.0,0.00025521,2]
[393263087,1762398636953,-1000.0,0.00025521,2]
[393263088,1762398636962,-1000.0,0.00025521,2]
[393263089,1762398636971,-1000.0,0.00025521,2]
[393263090,1762398636981,-502.72467708,0.00025521,2]
[393263091,1762398636991,-1000.0,0.00025521,2]
[393263092,1762398637000,-1000.0,0.00025521,2]
[393263093,1762398637010,-1000.0,0.00025521,2]
[393263094,1762398637019,-501.54088782,0.00025521,2]
[393263095,1762398637028,-1004.2313644,0.00025521,2]
[393263096,1762398637038,-1116.51149737,0.00025521,2]
[393263097,1762398637050,-192.19250843,0.00025588,2]
[393263098,1762398637059,-191.22997908,0.00025612,4]
[393263099,1762398637068,-505.26277919,0.00025616,2]
[393263100,1762398637079,-2000.0,0.00025616,2]
[393263101,1762398637088,-910.2251919,0.00025616,2]
[393263102,1762398637098,-1023.48938149,0.00025616,2]
[393263103,1762398637107,-2000.0,0.00025616,2]
[393263104,1762398637117,-1005.76233769,0.00025616,2]
[393263105,1762398637126,-1860.51792466,0.00025616,2]
[393263106,1762398637135,-2000.0,0.00025616,2]
[393263107,1762398637145,-2000.0,0.00025616,2]
[393263108,1762398637155,-509.4829025,0.00025616,2]
[393263109,1762398637164,-803.41225305,0.00025616,2]
[393263110,1762398637173,-2000.0,0.00025616,2]
[393263111,1762398637183,-303.95125812,0.00025616,2]
[393263112,1762398637192,-1505.80309215,0.00025616,2]
[393263113,1762398637205,-2000.0,0.00025616,2]
[393263114,1762398637214,-2000.0,0.00025616,2]
[393263115,1762398637224,-448.9670208,0.00025616,2]
[393263116,1762398637233,-2000.0,0.00025616,2]
[393263117,1762398637243,-1521.23756565,0.00025616,2]
[393263118,1762398637357,-2000.0,0.00025616,2]
[393263119,1762398637367,-1168.538744,0.00025616,2]
[393263120,1762398637376,-251.79364857,0.00025616,2]
[393263121,1762398637387,-660.0,0.00025656,2]
[393263122,1762398637397,-150.0,0.00025673,2]
[393263123,1762398637408,-163.527,0.00025691,2]
[393263124,1762398637418,-2849.34887783,0.00025692,2]
[393263125,1762398637429,-152.98071,0.000257,7]
[393263126,1762398637438,-500.0,0.00025701,2]
[393263127,1762398637452,-35197.9849038,0.00025702,2]
[393263128,1762398637462,-11962.9219929,0.00025702,2]
[393263129,1762398637473,-3126.42322,0.00025702,2]
[393263130,1762398637483,-3971.1021616,0.00025702,2]
[393263131,1762398637494,-314.0,0.00025768,2]
[393263132,1762398637503,-500.0,0.00025773,2]
[393263133,1762398637514,-240.983693,0.000258,2]
[393263134,1762398637526,-623.0,0.00025815,2]
[393263135,1762398637535,-497.0,0.00025817,2]
[393263136,1762398637545,-314.0,0.00025952,2]
[393263137,1762398637555,-179.38726342,0.00025968,2]
[393263138,1762398637564,-1500.0,0.00025968,2]
[393263139,1762398637574,-1500.0,0.00025968,2]
[393263140,1762398637585,-350.0,0.00025968,2]
[393263141,1762398637595,-151.0,0.00026,10]
[393263142,1762398637604,-151.0,0.00026,17]
[393263143,1762398637613,-151.0,0.00026,11]
[393263144,1762398637622,-414.46,0.00026,7]
[393263145,1762398637632,-2849.34887783,0.00026042,2]
[393263146,1762398637641,-28493.4887783,0.00026051,2]
[393263147,1762398637651,-200.7140901,0.0002606,2]
[393263148,1762398637660,-500.0,0.00026061,2]
[393263149,1762398637670,-500.0,0.00026061,2]
[393263150,1762398637679,-500.0,0.00026061,2]
[393263151,1762398637688,-500.0,0.00026061,2]
[393263152,1762398637699,-500.0,0.00026061,2]
[393263153,1762398637709,-500.0,0.00026061,2]
[393263154,1762398637718,-500.0,0.00026061,2]
[393263155,1762398637728,-500.0,0.00026061,2]
[393263156,1762398637738,-165.0105398,0.00026061,2]
[393263157,1762398637747,-147147.74374352,0.00026061,2]
[393263158,1762398637766,-874.63818407,0.00026061,2]
[393263159,1762398637777,-1217.92084572,0.00026061,2]
[393263160,1762398637789,-900.41152114,0.00026061,2]
[393263161,1762398637801,-1632.96652824,0.00026061,2]
[393263169,1762398638474,-389.03876571,0.0002217,4]
[393263170,1762398638485,-622.99520942,0.0002217,4]
[393263171,1762398638495,-1012.03397513,0.000229,4]
[393263172,1762398638504,-167.88711961,0.0002363,5]
[393263173,1762398638527,-844.14685552,0.0002363,5]
[393263174,1762398638536,-1012.03397513,0.0002436,5]
[393263175,1762398638546,-1012.03397513,0.0002509,6]
[393263176,1762398638555,-1013.0460091,0.0002582,7]
[393263177,1762398638564,-25270.34802983,0.00026061,2]
[393263179,1762398638575,-3651.0,0.00026061,2]
[393263180,1762398639427,-2304.50320088,0.00026061,2]
[393263181,1762398639445,-46803.591855,0.00026061,2]
[393263182,1762398639460,-15882.34559914,0.00026061,2]
[393263183,1762398639476,-454.83871577,0.00026061,2]
[393263188,1762398640699,-908.94263821,0.00026061,2]
[393263247,1762398646820,-378.67077109,0.00019995,2]
[393263249,1762398646830,-170.60616436,0.00019995,2]
[393263251,1762398646839,-129.65305191,0.00019995,2]
[393263262,1762398646929,-370.34694809,0.00019995,2]
[393263264,1762398646938,-162.57261043,0.00019995,2]
[393263266,1762398646948,-500.0,0.00019995,2]
[393263268,1762398646958,-500.0,0.00019995,2]
[393263270,1762398646967,-500.0,0.00019995,2]
[393263271,1762398646976,-500.0,0.00019995,2]
[393263273,1762398646986,-295.08815134,0.00019995,2]
[393263275,1762398646995,-275.62581485,0.00020186,2]
[393263277,1762398647004,-37466.95862262,0.00026061,2]
[393263314,1762398919714,334.0,0.00026454,120]
[393263315,1762398921249,334.0,0.00027777,120]
[393263317,1762398922681,334.0,0.00029166,120]
[393263318,1762398924148,334.0,0.00030624,120]
[393263319,1762398925444,334.0,0.00032155,120]
[393263320,1762398936434,193.0,0.00026472,120]
[393263321,1762398937922,193.0,0.00027795,120]
[393263322,1762398939233,193.0,0.00029185,120]
[393263323,1762398940506,193.0,0.00030644,120]
[393263324,1762398941834,193.0,0.00032177,120]
[393263330,1762399010184,150.0,0.00016527,2]
[393263331,1762399010626,150.0,0.00017314,2]
[393263383,1762399073705,1432.45189584,0.00018,2]
[393263384,1762399091165,150.0,0.00016268,2]
[393263385,1762399091561,150.0,0.00017043,2]
[393263386,1762399091954,199.05,0.00017817,2]
[393263390,1762399171091,150.0,0.00016087,2]
[393263391,1762399171507,150.0,0.00016853,2]
[393263392,1762399171903,179.99,0.00017619,2]
[393263393,1762399211282,167.0,0.00026494,120]
[393263394,1762399212634,167.0,0.00027819,120]
[393263395,1762399214045,167.0,0.0002921,120]
[393263396,1762399215363,167.0,0.0003067,120]
[393263397,1762399216709,167.0,0.00032204,120]
[393263398,1762399234878,161.0,0.00026505,120]
[393263399,1762399236268,161.0,0.00027831,120]
[393263400,1762399237946,161.0,0.00029222,120]
[393263401,1762399239408,161.0,0.00030683,120]
[393263402,1762399240810,161.0,0.00032218,120]
[393263403,1762399248456,150.0,0.00016419,2]
[393263404,1762399248877,150.0,0.00017201,2]
[393263405,1762399249317,161.67,0.00017982,2]
[393263413,1762399324918,150.0,0.00015925,2]
[393263414,1762399325354,150.0,0.00016683,2]
[393263415,1762399325796,150.0,0.00017441,2]
[393263424,1762399402668,150.0,0.00016216,2]
[393263425,1762399403068,150.0,0.00016988,2]
[393263426,1762399403480,150.0,0.0001776,2]
[393263429,1762399478564,150.0,0.00017236,2]
[393263430,1762399496562,5000.0,0.00018,2]
[393263431,1762399519644,4155.90320677,0.00018,2]
[393263432,1762399520405,167.0,0.00026569,120]
[393263433,1762399522071,167.0,0.00027898,120]
[393263434,1762399523505,167.0,0.00029293,120]
[393263435,1762399525190,167.0,0.00030757,120]
[393263436,1762399527031,167.0,0.00032295,120]
[393263437,1762399531898,165.0,0.00026586,120]
[393263440,1762399554076,150.0,0.00016143,2]
[393263442,1762399554470,150.0,0.00016911,2]
[393263444,1762399554866,150.0,0.0001768,2]
[393263469,1762399632428,150.0,0.00015532,2]
[393263470,1762399633094,150.0,0.00016272,2]
[393263471,1762399633497,150.0,0.00017012,2]
[393263472,1762399634351,150.0,0.00017751,2]
[393263474,1762399661806,1704.70771946,0.00018,2]
[393263475,1762399669969,473.45478175,0.0003,120]
[393263476,1762399694693,2119.85695556,0.000176,2]
[393263477,1762399703577,654.75976523,0.0002,120]
[393263478,1762399704708,150.0,0.00016287,2]
[393263479,1762399705132,150.0,0.00017062,2]
[393263480,1762399705565,150.0,0.00017838,2]
[393263481,1762399705678,159.52482031,0.00025,120]
[393263482,1762399706743,2885.68416809,0.00015,2]
[393263483,1762399709326,11499.87910012,0.00018,2]
[393263484,1762399712962,170.04205043,0.000295,120]
[393263485,1762399714298,454.17772122,0.0003,120]
[393263561,1762399832673,-249.0,0.00018703,2]
[393263563,1762399832682,-1.39420626,0.00018703,2]
[393263661,1762399840846,-148.60579374,0.00018703,2]
[393263664,1762399840855,-120.14681778,0.00018999,2]
[393264477,1762399845245,-1079.85318222,0.00018999,2]
[393264479,1762399845255,-34848.37411725,0.00019,2]
[393264481,1762399845265,-310.56535015,0.00019178,2]
[393264483,1762399845274,-160.0,0.00019398,2]
[393264485,1762399845284,-399.6403651,0.000194,2]
[393264487,1762399845293,-160.0,0.000194,2]
[393264490,1762399845302,-160.0,0.000194,2]
[393264492,1762399845312,-192.93807039,0.00019999,2]
[393264494,1762399845321,-368.084609,0.0002,2]
[393264496,1762399845331,-5861.41604096,0.0002,2]
[393264535,1762399847410,-3153.67236305,0.0002,2]
[393264536,1762399847422,-1586.71887493,0.0002,2]
[393264542,1762399888970,718.163904,0.00030137,120]
[393264580,1762400408077,526.876076,0.00013699,2]
[393264584,1762400563855,352.1,0.00032877,120]
[393264593,1762400977317,297.52492684,0.00017375,2]
[393264594,1762400979424,535.54486832,0.00017375,2]
[393264637,1762401037652,-239.0,0.00018289,2]
[393264639,1762401037661,-150.0,0.00018289,2]
[393264641,1762401037671,-164.8304621,0.0001892,2]
[393264643,1762401037681,-399.6403651,0.000194,2]
[393264645,1762401037690,-150.0,0.00019882,2]
[393264647,1762401037700,-1200.0,0.00019969,2]
[393264649,1762401037709,-999.64245013,0.00019969,2]
[393264651,1762401037719,-137.10476268,0.00019969,2]
[393264653,1762401037731,-305.9991201,0.00019969,2]
[393264655,1762401037740,-500.0,0.00019969,2]
[393264656,1762401037750,-474.11916474,0.00019969,2]
[393264657,1762401037759,-260.85382329,0.00019969,2]
[393264658,1762401037768,-1118.52052147,0.0001997,2]
[393264659,1762401037777,-50000.0,0.0001997,2]
[393264660,1762401037786,-500.0,0.00019973,2]
[393264661,1762401037795,-500.0,0.00019973,2]
[393264662,1762401037804,-500.0,0.00019973,2]
[393264663,1762401037814,-500.0,0.00019973,2]
[393264664,1762401037824,-500.0,0.00019973,2]
[393264665,1762401037834,-501.47504386,0.00019973,2]
[393264666,1762401037844,-500.0,0.00019973,2]
[393264667,1762401037853,-184.89223885,0.00019973,2]
[393264668,1762401037862,-502.91101765,0.00019973,2]
[393264669,1762401037872,-500.0,0.00019973,2]
[393264670,1762401037881,-379.64814932,0.00019973,2]
[393264671,1762401037893,-500.0,0.00019973,2]
[393264672,1762401037903,-500.0,0.00019973,2]
[393264673,1762401037913,-534.33739375,0.00019973,2]
[393264674,1762401037922,-506.15207001,0.00019973,2]
[393264675,1762401037932,-500.0,0.00019973,2]
[393264676,1762401037941,-503.05945252,0.00019973,2]
[393264677,1762401037951,-500.0,0.00019973,2]